[Event "Early-Titled-Tuesday-Blitz-October-24-2023"]
[Site "Chess.com"]
[Date "2023.10.24"]
[Round "4"]
[White "MatthewG-p4p"]
[Black "HajiyevKanan"]
[Result "1-0"]
[WhiteElo "2805"]
[BlackElo "2559"]
[TimeControl "180+1"]
[EndTime "8:36:50 PDT"]
[Termination "MatthewG-p4p won by resignation"]

1. e4 {[%clk 0:03:00.9]} 1... c6 {[%clk 0:03:00.1]} 2. d4 {[%clk 0:03:01.1]}
2... d5 {[%clk 0:03:01]} 3. exd5 {[%clk 0:03:01.9]} 3... cxd5 {[%clk 0:03:01.9]}
4. Bd3 {[%clk 0:03:02.2]} 4... Nc6 {[%clk 0:03:01.5]} 5. c3 {[%clk 0:03:02.7]}
5... Nf6 {[%clk 0:03:02]} 6. h3 {[%clk 0:03:03.1]} 6... g6 {[%clk 0:03:02.5]} 7.
Nf3 {[%clk 0:03:03.4]} 7... Bg7 {[%clk 0:03:03.2]} 8. O-O {[%clk 0:03:03.6]}
8... O-O {[%clk 0:03:03.5]} 9. Re1 {[%clk 0:03:04.1]} 9... Bf5 {[%clk
0:03:01.3]} 10. Bf1 {[%clk 0:03:04.5]} 10... Qc7 {[%clk 0:02:58.1]} 11. Be3
{[%clk 0:03:02.8]} 11... Ne4 {[%clk 0:02:56.9]} 12. Nbd2 {[%clk 0:03:02.5]}
12... Rfe8 {[%clk 0:02:49.3]} 13. Nxe4 {[%clk 0:03:01.1]} 13... Bxe4 {[%clk
0:02:41.1]} 14. Nd2 {[%clk 0:03:00.3]} 14... Bf5 {[%clk 0:02:27.4]} 15. Qf3
{[%clk 0:02:58.1]} 15... Rad8 {[%clk 0:02:23.3]} 16. Nb3 {[%clk 0:02:56.6]}
16... e5 {[%clk 0:02:10]} 17. dxe5 {[%clk 0:02:56.3]} 17... Nxe5 {[%clk
0:02:10]} 18. Qg3 {[%clk 0:02:56.5]} 18... a6 {[%clk 0:01:37.5]} 19. Bf4 {[%clk
0:02:45.3]} 19... f6 {[%clk 0:01:29]} 20. Rad1 {[%clk 0:02:45.2]} 20... Qf7
{[%clk 0:01:24.1]} 21. Nd4 {[%clk 0:02:41.3]} 21... Bc8 {[%clk 0:01:11.7]} 22.
Nf3 {[%clk 0:02:41.6]} 22... Nc4 {[%clk 0:01:01.7]} 23. b3 {[%clk 0:02:39.7]}
23... Na3 {[%clk 0:00:53.3]} 24. Bc7 {[%clk 0:02:35.4]} 24... Rd7 {[%clk
0:00:32.1]} 25. Rxe8+ {[%clk 0:02:20.4]} 25... Qxe8 {[%clk 0:00:33]} 26. Bb6
{[%clk 0:02:18.1]} 26... Nb5 {[%clk 0:00:27.3]} 27. Re1 {[%clk 0:02:15.9]} 27...
Re7 {[%clk 0:00:25.9]} 28. Rxe7 {[%clk 0:02:10.7]} 28... Qxe7 {[%clk 0:00:26.8]}
29. Qb8 {[%clk 0:02:10.7]} 29... Qe8 {[%clk 0:00:20.2]} 30. c4 {[%clk
0:01:58.9]} 30... dxc4 {[%clk 0:00:19.3]} 31. Bxc4+ {[%clk 0:01:53.5]} 31... Kh8
{[%clk 0:00:19.5]} 32. a4 {[%clk 0:01:45.8]} 32... Nc3 {[%clk 0:00:16]} 33. Be3
{[%clk 0:01:46.3]} 33... Ne4 {[%clk 0:00:11.5]} 34. Nd4 {[%clk 0:01:41.1]} 34...
Qf8 {[%clk 0:00:03.2]} 35. Qc7 {[%clk 0:01:36.9]} 35... h5 {[%clk 0:00:02.6]}
36. a5 {[%clk 0:01:29.8]} 36... f5 {[%clk 0:00:02.5]} 37. Be6 {[%clk 0:01:21.9]}
37... Bxe6 {[%clk 0:00:01.8]} 38. Nxe6 {[%clk 0:01:22.8]} 38... Qg8 {[%clk
0:00:02]} 39. Nf4 {[%clk 0:01:19.8]} 39... Qf8 {[%clk 0:00:01.8]} 40. Nxg6+
{[%clk 0:01:19.7]} 1-0

[Event "Early-Titled-Tuesday-Blitz-October-24-2023"]
[Site "Chess.com"]
[Date "2023.10.24"]
[Round "4"]
[White "Fonsofan"]
[Black "noblerone"]
[Result "1-0"]
[WhiteElo "2731"]
[BlackElo "2521"]
[TimeControl "180+1"]
[EndTime "8:36:51 PDT"]
[Termination "Fonsofan won by resignation"]

1. e4 {[%clk 0:02:56.2]} 1... d5 {[%clk 0:02:55.6]} 2. exd5 {[%clk 0:02:55.4]}
2... Qxd5 {[%clk 0:02:56.5]} 3. Nc3 {[%clk 0:02:55.7]} 3... Qd8 {[%clk
0:02:54.4]} 4. g3 {[%clk 0:02:56.1]} 4... c6 {[%clk 0:02:45.5]} 5. Bg2 {[%clk
0:02:56.3]} 5... Nf6 {[%clk 0:02:44.6]} 6. b4 {[%clk 0:02:55.6]} 6... a6 {[%clk
0:02:20.3]} 7. Rb1 {[%clk 0:02:52.3]} 7... Bf5 {[%clk 0:02:17.3]} 8. Nge2 {[%clk
0:02:50.3]} 8... e6 {[%clk 0:02:16.8]} 9. a4 {[%clk 0:02:48.7]} 9... Be7 {[%clk
0:02:10.7]} 10. O-O {[%clk 0:02:43]} 10... O-O {[%clk 0:02:10.5]} 11. d3 {[%clk
0:02:37.6]} 11... Qc7 {[%clk 0:02:00.2]} 12. b5 {[%clk 0:02:33.7]} 12... axb5
{[%clk 0:01:54.7]} 13. axb5 {[%clk 0:02:34.6]} 13... Ra5 {[%clk 0:01:51.2]} 14.
Bd2 {[%clk 0:02:19.4]} 14... Ra3 {[%clk 0:01:39.7]} 15. h3 {[%clk 0:02:13.7]}
15... Nd5 {[%clk 0:01:37.5]} 16. bxc6 {[%clk 0:02:04.3]} 16... bxc6 {[%clk
0:01:35.5]} 17. Nxd5 {[%clk 0:01:56.5]} 17... cxd5 {[%clk 0:01:30.6]} 18. Nd4
{[%clk 0:01:55.8]} 18... Qd8 {[%clk 0:01:10.9]} 19. Nxf5 {[%clk 0:01:37.1]}
19... exf5 {[%clk 0:01:11.8]} 20. Rb5 {[%clk 0:01:32.6]} 20... d4 {[%clk
0:01:03.8]} 21. Rxf5 {[%clk 0:01:27.8]} 21... Nd7 {[%clk 0:01:00.7]} 22. Rd5
{[%clk 0:01:25.3]} 22... Ra4 {[%clk 0:00:44.9]} 23. Qg4 {[%clk 0:01:18.3]} 23...
Ra7 {[%clk 0:00:31.3]} 24. Re1 {[%clk 0:01:10.5]} 24... Bf6 {[%clk 0:00:27]} 25.
Bb4 {[%clk 0:00:40.5]} 25... Re8 {[%clk 0:00:23.3]} 26. Be4 {[%clk 0:00:41.1]}
26... Ne5 {[%clk 0:00:14.8]} 27. Rxd8 {[%clk 0:00:38.9]} 1-0

[Event "Early-Titled-Tuesday-Blitz-October-24-2023"]
[Site "Chess.com"]
[Date "2023.10.24"]
[Round "4"]
[White "Vesper2018"]
[Black "KVAIDAN"]
[Result "1-0"]
[WhiteElo "2584"]
[BlackElo "2372"]
[TimeControl "180+1"]
[EndTime "8:36:54 PDT"]
[Termination "Vesper2018 won by checkmate"]

1. e4 {[%clk 0:02:54.7]} 1... e5 {[%clk 0:02:34.1]} 2. Nf3 {[%clk 0:02:52.4]}
2... d5 {[%clk 0:02:34.1]} 3. Nxe5 {[%clk 0:02:49]} 3... Bd6 {[%clk 0:02:33.6]}
4. d4 {[%clk 0:02:48.1]} 4... dxe4 {[%clk 0:02:34]} 5. Nc4 {[%clk 0:02:36.1]}
5... Nf6 {[%clk 0:02:33.7]} 6. Be2 {[%clk 0:02:33.5]} 6... Nc6 {[%clk
0:02:33.4]} 7. Be3 {[%clk 0:02:25.9]} 7... Bf5 {[%clk 0:02:29.2]} 8. O-O {[%clk
0:02:19.9]} 8... Qd7 {[%clk 0:02:26]} 9. Nxd6+ {[%clk 0:02:16]} 9... Qxd6 {[%clk
0:02:25.9]} 10. c4 {[%clk 0:02:16.2]} 10... O-O-O {[%clk 0:02:24.4]} 11. d5
{[%clk 0:02:15.8]} 11... Ne5 {[%clk 0:02:24]} 12. h3 {[%clk 0:02:09.6]} 12... a6
{[%clk 0:02:21.7]} 13. Nc3 {[%clk 0:02:07.8]} 13... h5 {[%clk 0:02:21.4]} 14. c5
{[%clk 0:02:03.4]} 14... Qe7 {[%clk 0:02:18.4]} 15. c6 {[%clk 0:02:03.3]} 15...
Nxc6 {[%clk 0:02:14.2]} 16. Qa4 {[%clk 0:01:31.5]} 16... Nxd5 {[%clk 0:02:02.9]}
17. Bxa6 {[%clk 0:01:29]} 17... Nxc3 {[%clk 0:01:54]} 18. bxc3 {[%clk
0:01:22.3]} 18... Qe6 {[%clk 0:01:48.9]} 19. Bc4 {[%clk 0:01:14.7]} 19... Qg6
{[%clk 0:01:47.5]} 20. Qa8+ {[%clk 0:01:06.6]} 20... Nb8 {[%clk 0:01:46.8]} 21.
Rab1 {[%clk 0:01:02.7]} 21... b6 {[%clk 0:01:39]} 22. Rfd1 {[%clk 0:00:50.3]}
22... Rd6 {[%clk 0:01:30.9]} 23. Bf4 {[%clk 0:00:40.9]} 23... Rd3 {[%clk
0:01:08.7]} 24. Ba6+ {[%clk 0:00:25]} 24... Kd7 {[%clk 0:01:05.7]} 25. Bxd3
{[%clk 0:00:20.1]} 25... exd3 {[%clk 0:01:05.3]} 26. Qd5+ {[%clk 0:00:19.8]}
26... Kc8 {[%clk 0:01:04.8]} 27. Qe5 {[%clk 0:00:12.5]} 27... Kd7 {[%clk
0:00:53.5]} 28. Qxc7+ {[%clk 0:00:12.4]} 28... Ke6 {[%clk 0:00:37.9]} 29. Qd6#
{[%clk 0:00:12]} 1-0

[Event "Early-Titled-Tuesday-Blitz-October-24-2023"]
[Site "Chess.com"]
[Date "2023.10.24"]
[Round "4"]
[White "Russian_berezka"]
[Black "ErikRonka"]
[Result "1-0"]
[WhiteElo "2694"]
[BlackElo "2512"]
[TimeControl "180+1"]
[EndTime "8:37:06 PDT"]
[Termination "Russian_berezka won by resignation"]

1. d4 {[%clk 0:03:00.9]} 1... d5 {[%clk 0:03:00]} 2. c4 {[%clk 0:03:00.9]} 2...
c6 {[%clk 0:03:00.6]} 3. Nc3 {[%clk 0:03:00.5]} 3... Nf6 {[%clk 0:03:01.3]} 4.
Nf3 {[%clk 0:03:00.6]} 4... e6 {[%clk 0:03:01.5]} 5. cxd5 {[%clk 0:02:59.2]}
5... exd5 {[%clk 0:03:01.5]} 6. Bf4 {[%clk 0:02:58.6]} 6... Bd6 {[%clk
0:03:01.1]} 7. Bxd6 {[%clk 0:02:55.6]} 7... Qxd6 {[%clk 0:03:02]} 8. e3 {[%clk
0:02:55.3]} 8... Bf5 {[%clk 0:03:00.5]} 9. Nh4 {[%clk 0:02:54.1]} 9... Be6
{[%clk 0:02:49.7]} 10. Qc2 {[%clk 0:02:49.3]} 10... O-O {[%clk 0:02:49]} 11. Bd3
{[%clk 0:02:45.1]} 11... Nbd7 {[%clk 0:02:48.7]} 12. h3 {[%clk 0:02:41.4]} 12...
Rfe8 {[%clk 0:02:34.5]} 13. O-O {[%clk 0:02:40.6]} 13... g6 {[%clk 0:02:22.4]}
14. Nf3 {[%clk 0:02:39.9]} 14... Kg7 {[%clk 0:02:14.9]} 15. Rab1 {[%clk
0:02:34.2]} 15... a5 {[%clk 0:02:15.4]} 16. Rfc1 {[%clk 0:02:29.9]} 16... Ng8
{[%clk 0:02:00.8]} 17. e4 {[%clk 0:02:23.4]} 17... dxe4 {[%clk 0:01:59.9]} 18.
Nxe4 {[%clk 0:02:23.5]} 18... Qb4 {[%clk 0:01:50]} 19. a3 {[%clk 0:02:18.9]}
19... Qb3 {[%clk 0:01:38.7]} 20. Qd2 {[%clk 0:02:19.1]} 20... Qb6 {[%clk
0:01:34.2]} 21. b4 {[%clk 0:02:13]} 21... axb4 {[%clk 0:01:35.1]} 22. axb4
{[%clk 0:02:10]} 22... Ngf6 {[%clk 0:01:28.6]} 23. Nc5 {[%clk 0:02:07]} 23...
Bd5 {[%clk 0:01:08.2]} 24. Qf4 {[%clk 0:01:57.1]} 24... Qa7 {[%clk 0:00:37.6]}
25. Ne5 {[%clk 0:01:42.8]} 25... Nf8 {[%clk 0:00:37.6]} 26. b5 {[%clk
0:01:30.7]} 26... cxb5 {[%clk 0:00:33.8]} 27. Bxb5 {[%clk 0:01:24.7]} 27... Rec8
{[%clk 0:00:30.3]} 28. Bc4 {[%clk 0:01:03.2]} 28... Bxc4 {[%clk 0:00:27.6]} 29.
Rxb7 {[%clk 0:00:54.7]} 29... Qa2 {[%clk 0:00:06.8]} 30. Rxc4 {[%clk 0:00:42]}
30... Rd8 {[%clk 0:00:03.7]} 31. Rxf7+ {[%clk 0:00:40.8]} 31... Kg8 {[%clk
0:00:03.7]} 32. Qxf6 {[%clk 0:00:39.9]} 1-0

[Event "Early-Titled-Tuesday-Blitz-October-24-2023"]
[Site "Chess.com"]
[Date "2023.10.24"]
[Round "4"]
[White "PinaSoprano"]
[Black "Bilan_Danila"]
[Result "0-1"]
[WhiteElo "2201"]
[BlackElo "2407"]
[TimeControl "180+1"]
[EndTime "8:37:09 PDT"]
[Termination "Bilan_Danila won by resignation"]

1. d4 {[%clk 0:03:00.9]} 1... d5 {[%clk 0:02:58]} 2. c4 {[%clk 0:03:01]} 2... c6
{[%clk 0:02:57.6]} 3. Nc3 {[%clk 0:03:00.8]} 3... Nf6 {[%clk 0:02:57.6]} 4. Nf3
{[%clk 0:02:58.2]} 4... e6 {[%clk 0:02:57.8]} 5. e3 {[%clk 0:02:58]} 5... Nbd7
{[%clk 0:02:56.6]} 6. Be2 {[%clk 0:02:53.8]} 6... Bd6 {[%clk 0:02:56.3]} 7. O-O
{[%clk 0:02:51.3]} 7... O-O {[%clk 0:02:54.3]} 8. b3 {[%clk 0:02:47.8]} 8...
dxc4 {[%clk 0:02:50.8]} 9. bxc4 {[%clk 0:02:47.6]} 9... e5 {[%clk 0:02:51.4]}
10. Qc2 {[%clk 0:02:28.2]} 10... Qe7 {[%clk 0:02:49.7]} 11. h3 {[%clk
0:01:57.9]} 11... Re8 {[%clk 0:02:32.7]} 12. Bb2 {[%clk 0:01:51.6]} 12... e4
{[%clk 0:02:26.6]} 13. Nd2 {[%clk 0:01:50.7]} 13... Nf8 {[%clk 0:02:15.8]} 14.
d5 {[%clk 0:01:43.6]} 14... Ng6 {[%clk 0:01:55.3]} 15. c5 {[%clk 0:01:07.5]}
15... Be5 {[%clk 0:01:02.3]} 16. d6 {[%clk 0:01:05.4]} 16... Qd8 {[%clk
0:00:57.3]} 17. Nc4 {[%clk 0:01:00]} 17... Bf5 {[%clk 0:00:51.3]} 18. Nxe5
{[%clk 0:00:59.4]} 18... Nxe5 {[%clk 0:00:51.6]} 19. Rad1 {[%clk 0:00:40.1]}
19... Qd7 {[%clk 0:00:50.3]} 20. Na4 {[%clk 0:00:31]} 20... Bxh3 {[%clk
0:00:40.1]} 21. gxh3 {[%clk 0:00:27.4]} 21... Qxh3 {[%clk 0:00:40.2]} 22. f4
{[%clk 0:00:26.9]} 22... exf3 {[%clk 0:00:23]} 23. Bxf3 {[%clk 0:00:17.6]} 23...
Nxf3+ {[%clk 0:00:20]} 24. Rxf3 {[%clk 0:00:18.5]} 24... Qxf3 {[%clk 0:00:19.3]}
25. Bxf6 {[%clk 0:00:17.8]} 25... Qxf6 {[%clk 0:00:13.8]} 0-1

[Event "Early-Titled-Tuesday-Blitz-October-24-2023"]
[Site "Chess.com"]
[Date "2023.10.24"]
[Round "4"]
[White "pedro_gines"]
[Black "ama18"]
[Result "1-0"]
[WhiteElo "2745"]
[BlackElo "2525"]
[TimeControl "180+1"]
[EndTime "8:37:10 PDT"]
[Termination "pedro_gines won by resignation"]

1. d4 {[%clk 0:02:56.9]} 1... Nf6 {[%clk 0:02:59.9]} 2. c4 {[%clk 0:02:56.2]}
2... e6 {[%clk 0:03:00.6]} 3. Nf3 {[%clk 0:02:54.6]} 3... d5 {[%clk 0:02:59.9]}
4. g3 {[%clk 0:02:54.3]} 4... dxc4 {[%clk 0:02:59.3]} 5. Bg2 {[%clk 0:02:54.9]}
5... c6 {[%clk 0:02:49.5]} 6. O-O {[%clk 0:02:54]} 6... b5 {[%clk 0:02:47.8]} 7.
a4 {[%clk 0:02:53.5]} 7... Bb7 {[%clk 0:02:46.4]} 8. Ne5 {[%clk 0:02:49.7]} 8...
a6 {[%clk 0:02:45.8]} 9. b3 {[%clk 0:02:49.5]} 9... cxb3 {[%clk 0:02:45.6]} 10.
Qxb3 {[%clk 0:02:50.4]} 10... Qxd4 {[%clk 0:02:45.4]} 11. Bb2 {[%clk 0:02:50.6]}
11... Qb4 {[%clk 0:02:45.7]} 12. Qc2 {[%clk 0:02:51.1]} 12... Qc5 {[%clk
0:02:46]} 13. Qb3 {[%clk 0:02:51.7]} 13... Qb4 {[%clk 0:02:46.1]} 14. Qc2 {[%clk
0:02:52.4]} 14... Qc5 {[%clk 0:02:46.3]} 15. Qd3 {[%clk 0:02:52.9]} 15... Qd6
{[%clk 0:02:46.1]} 16. Qe3 {[%clk 0:02:41.7]} 16... Qc7 {[%clk 0:02:44.5]} 17.
axb5 {[%clk 0:02:03.5]} 17... axb5 {[%clk 0:02:39.1]} 18. Rxa8 {[%clk
0:02:00.7]} 18... Bxa8 {[%clk 0:02:40]} 19. Nc3 {[%clk 0:02:01.2]} 19... Bd6
{[%clk 0:02:11.5]} 20. Nxb5 {[%clk 0:02:00.5]} 20... cxb5 {[%clk 0:02:09]} 21.
Rc1 {[%clk 0:01:44.5]} 21... Qd8 {[%clk 0:00:52.7]} 22. Bxa8 {[%clk 0:01:43.9]}
22... O-O {[%clk 0:00:52.4]} 23. Bf3 {[%clk 0:01:39.5]} 23... Qa5 {[%clk
0:00:38.3]} 24. Kg2 {[%clk 0:01:36.2]} 24... Qb4 {[%clk 0:00:30.5]} 25. Nd3
{[%clk 0:01:32.8]} 25... Qb3 {[%clk 0:00:26.8]} 26. Bxf6 {[%clk 0:01:27.5]}
26... gxf6 {[%clk 0:00:27.7]} 27. Qh6 {[%clk 0:01:27.8]} 27... f5 {[%clk
0:00:25.4]} 28. Qg5+ {[%clk 0:01:22.7]} 28... Kh8 {[%clk 0:00:25.3]} 29. Qf6+
{[%clk 0:01:23.6]} 29... Kg8 {[%clk 0:00:25.5]} 30. Rc3 {[%clk 0:01:22.8]} 30...
Qa4 {[%clk 0:00:17]} 31. Qg5+ {[%clk 0:01:12.3]} 31... Kh8 {[%clk 0:00:16.9]}
32. Qf6+ {[%clk 0:01:13.2]} 32... Kg8 {[%clk 0:00:17]} 33. Nc5 {[%clk
0:01:14.1]} 33... Bxc5 {[%clk 0:00:14.7]} 34. Rxc5 {[%clk 0:01:15]} 34... Nd7
{[%clk 0:00:14.6]} 35. Qg5+ {[%clk 0:01:15.5]} 35... Kh8 {[%clk 0:00:15.1]} 36.
Rc7 {[%clk 0:01:16.4]} 36... Qd4 {[%clk 0:00:13.5]} 37. Qe7 {[%clk 0:01:15.1]}
37... Kg7 {[%clk 0:00:05]} 38. Rxd7 {[%clk 0:01:14]} 38... Qe5 {[%clk
0:00:05.3]} 39. Qg5+ {[%clk 0:01:13.3]} 39... Kh8 {[%clk 0:00:05.1]} 40. Qh6
{[%clk 0:01:10.7]} 40... Kg8 {[%clk 0:00:05]} 41. Rb7 {[%clk 0:01:09.8]} 41...
Qc5 {[%clk 0:00:03.8]} 42. Qg5+ {[%clk 0:01:09.2]} 42... Kh8 {[%clk 0:00:03.9]}
43. Qf6+ {[%clk 0:01:09.8]} 43... Kg8 {[%clk 0:00:04.2]} 44. h4 {[%clk
0:01:10.1]} 44... b4 {[%clk 0:00:04.4]} 45. h5 {[%clk 0:01:10.3]} 1-0

[Event "Early-Titled-Tuesday-Blitz-October-24-2023"]
[Site "Chess.com"]
[Date "2023.10.24"]
[Round "4"]
[White "zeebraa"]
[Black "ChessBliss09"]
[Result "1-0"]
[WhiteElo "2266"]
[BlackElo "2022"]
[TimeControl "180+1"]
[EndTime "8:37:10 PDT"]
[Termination "zeebraa won on time"]

1. d4 {[%clk 0:03:00.9]} 1... d5 {[%clk 0:02:59.3]} 2. Bf4 {[%clk 0:03:01.1]}
2... Nf6 {[%clk 0:02:58.3]} 3. e3 {[%clk 0:03:01.7]} 3... c5 {[%clk 0:02:58]} 4.
Nf3 {[%clk 0:03:01.4]} 4... Nc6 {[%clk 0:02:56.8]} 5. Nbd2 {[%clk 0:03:02.1]}
5... Bf5 {[%clk 0:02:52.5]} 6. dxc5 {[%clk 0:03:01.1]} 6... e6 {[%clk
0:02:51.9]} 7. Nd4 {[%clk 0:03:01.1]} 7... Bg4 {[%clk 0:02:42.1]} 8. f3 {[%clk
0:02:59]} 8... Bh5 {[%clk 0:02:41.3]} 9. Bb5 {[%clk 0:02:58]} 9... Rc8 {[%clk
0:02:36.3]} 10. b4 {[%clk 0:02:55.8]} 10... Nd7 {[%clk 0:02:27.9]} 11. Nxc6
{[%clk 0:02:55.4]} 11... bxc6 {[%clk 0:02:27.7]} 12. Ba6 {[%clk 0:02:55.6]}
12... Rb8 {[%clk 0:02:27.6]} 13. Bxb8 {[%clk 0:02:55.1]} 13... Qxb8 {[%clk
0:02:27.1]} 14. a3 {[%clk 0:02:51]} 14... Qe5 {[%clk 0:02:26.4]} 15. O-O {[%clk
0:02:43.4]} 15... Qxe3+ {[%clk 0:02:26]} 16. Kh1 {[%clk 0:02:42.9]} 16... Be7
{[%clk 0:02:23.6]} 17. Re1 {[%clk 0:02:39.3]} 17... Qf4 {[%clk 0:02:15.3]} 18.
c4 {[%clk 0:02:26.5]} 18... Bf6 {[%clk 0:02:10.6]} 19. cxd5 {[%clk 0:02:23.4]}
19... cxd5 {[%clk 0:02:05.3]} 20. Rc1 {[%clk 0:02:21.9]} 20... O-O {[%clk
0:01:58.6]} 21. c6 {[%clk 0:02:18.2]} 21... Nb6 {[%clk 0:01:50.4]} 22. c7 {[%clk
0:02:15.6]} 22... Nc8 {[%clk 0:01:44.2]} 23. Qa4 {[%clk 0:01:56.4]} 23... Qxd2
{[%clk 0:01:15.7]} 24. Bxc8 {[%clk 0:01:54.7]} 24... Qf4 {[%clk 0:00:29]} 25.
Qc2 {[%clk 0:01:10.6]} 25... Rxc8 {[%clk 0:00:16.2]} 26. Qe2 {[%clk 0:01:03.8]}
26... Rxc7 {[%clk 0:00:13.4]} 27. Rxc7 {[%clk 0:01:03.4]} 27... Qxc7 {[%clk
0:00:14.3]} 28. Qd2 {[%clk 0:01:01.9]} 28... h6 {[%clk 0:00:13.1]} 29. Rc1
{[%clk 0:01:02]} 29... Qd7 {[%clk 0:00:08]} 30. Qc2 {[%clk 0:00:57.6]} 30... Bg6
{[%clk 0:00:07.6]} 31. Qc7 {[%clk 0:00:53.4]} 31... Qb5 {[%clk 0:00:03.8]} 32.
Qxa7 {[%clk 0:00:50.7]} 32... Qe2 {[%clk 0:00:02.6]} 33. Qg1 {[%clk 0:00:47.9]}
1-0

[Event "Early-Titled-Tuesday-Blitz-October-24-2023"]
[Site "Chess.com"]
[Date "2023.10.24"]
[Round "4"]
[White "Levanzovsky"]
[Black "kidagent"]
[Result "1-0"]
[WhiteElo "2482"]
[BlackElo "2278"]
[TimeControl "180+1"]
[EndTime "8:37:11 PDT"]
[Termination "Levanzovsky won by resignation"]

1. e4 {[%clk 0:02:55.8]} 1... c6 {[%clk 0:02:59.6]} 2. c4 {[%clk 0:02:55.1]}
2... d5 {[%clk 0:02:59.5]} 3. cxd5 {[%clk 0:02:56]} 3... cxd5 {[%clk 0:02:59.2]}
4. exd5 {[%clk 0:02:56.9]} 4... Nf6 {[%clk 0:02:58.2]} 5. Nc3 {[%clk 0:02:57.3]}
5... Nxd5 {[%clk 0:02:55.9]} 6. Nf3 {[%clk 0:02:57.8]} 6... Nc6 {[%clk
0:02:54.7]} 7. d4 {[%clk 0:02:57.8]} 7... Bg4 {[%clk 0:02:35.5]} 8. Qb3 {[%clk
0:02:56.6]} 8... Bxf3 {[%clk 0:02:34.2]} 9. gxf3 {[%clk 0:02:57.5]} 9... e6
{[%clk 0:02:33.6]} 10. Qxb7 {[%clk 0:02:57.5]} 10... Nxd4 {[%clk 0:02:32.6]} 11.
Bb5+ {[%clk 0:02:57.8]} 11... Nxb5 {[%clk 0:02:32.1]} 12. Qc6+ {[%clk
0:02:58.2]} 12... Ke7 {[%clk 0:02:32]} 13. Qxb5 {[%clk 0:02:58.4]} 13... Qd7
{[%clk 0:02:32.2]} 14. Nxd5+ {[%clk 0:02:53.9]} 14... Qxd5 {[%clk 0:02:30.7]}
15. Bg5+ {[%clk 0:02:53.9]} 15... f6 {[%clk 0:02:26.1]} 16. Qxd5 {[%clk
0:02:53.7]} 16... exd5 {[%clk 0:02:25.9]} 17. Be3 {[%clk 0:02:54.6]} 17... Ke6
{[%clk 0:02:24.7]} 18. O-O-O {[%clk 0:02:54.6]} 18... Bb4 {[%clk 0:02:24.1]} 19.
a3 {[%clk 0:02:54.6]} 19... Rhc8+ {[%clk 0:02:23]} 20. Kb1 {[%clk 0:02:54.4]}
20... Bc5 {[%clk 0:02:23.3]} 21. Rhe1 {[%clk 0:02:54.2]} 21... Bxe3 {[%clk
0:02:20.6]} 22. Rxe3+ {[%clk 0:02:53.8]} 22... Kd6 {[%clk 0:02:18.9]} 23. Rde1
{[%clk 0:02:53.9]} 23... Rc4 {[%clk 0:02:18.9]} 24. Re6+ {[%clk 0:02:53]} 24...
Kc5 {[%clk 0:02:17.5]} 25. Re7 {[%clk 0:02:52.7]} 25... Rh4 {[%clk 0:02:12.3]}
26. Rxg7 {[%clk 0:02:44.7]} 26... Rxh2 {[%clk 0:02:11.5]} 27. Re3 {[%clk
0:02:30.8]} 27... Rxf2 {[%clk 0:01:43.5]} 28. Rc3+ {[%clk 0:02:22]} 28... Kd4
{[%clk 0:01:40.7]} 29. Rxh7 {[%clk 0:02:22.9]} 29... Rb8 {[%clk 0:01:40.3]} 30.
Rc2 {[%clk 0:02:21.4]} 30... Rxf3 {[%clk 0:01:37.6]} 31. Rxa7 {[%clk 0:02:21]}
31... f5 {[%clk 0:01:34.3]} 32. Rd7 {[%clk 0:02:14.6]} 32... Rd3 {[%clk
0:01:32.9]} 33. Rf7 {[%clk 0:02:04.9]} 33... Rf3 {[%clk 0:01:00.5]} 34. Ka2
{[%clk 0:02:00.9]} 34... Kd3 {[%clk 0:00:59.1]} 35. Rc3+ {[%clk 0:01:59.8]}
35... Ke4 {[%clk 0:00:57.4]} 36. Rxf3 {[%clk 0:01:58.5]} 36... Kxf3 {[%clk
0:00:58]} 37. Rxf5+ {[%clk 0:01:58.6]} 37... Ke4 {[%clk 0:00:58.8]} 38. Rf7
{[%clk 0:01:58.6]} 38... d4 {[%clk 0:00:59]} 39. Re7+ {[%clk 0:01:58.7]} 39...
Kd3 {[%clk 0:00:59]} 40. b4 {[%clk 0:01:50.3]} 40... Kc2 {[%clk 0:00:56]} 41.
Rc7+ {[%clk 0:01:49.4]} 41... Kd2 {[%clk 0:00:56]} 42. Kb3 {[%clk 0:01:46.9]}
42... d3 {[%clk 0:00:56.5]} 43. a4 {[%clk 0:01:46.6]} 43... Rd8 {[%clk
0:00:55.3]} 44. a5 {[%clk 0:01:36.8]} 44... Ke1 {[%clk 0:00:52.6]} 45. Re7+
{[%clk 0:01:31.8]} 45... Kf2 {[%clk 0:00:51.8]} 46. Rf7+ {[%clk 0:01:31.8]}
46... Ke3 {[%clk 0:00:51.5]} 47. b5 {[%clk 0:01:23.5]} 47... d2 {[%clk
0:00:51.4]} 48. Rf1 {[%clk 0:01:22.9]} 48... d1=Q+ {[%clk 0:00:45.6]} 49. Rxd1
{[%clk 0:01:22]} 49... Rxd1 {[%clk 0:00:46.4]} 50. a6 {[%clk 0:01:07.2]} 50...
Kd4 {[%clk 0:00:41.7]} 51. a7 {[%clk 0:01:05.5]} 51... Ra1 {[%clk 0:00:36.8]}
52. b6 {[%clk 0:01:05.5]} 52... Kc5 {[%clk 0:00:32.1]} 53. b7 {[%clk 0:01:03.9]}
53... Rxa7 {[%clk 0:00:29.5]} 54. b8=Q {[%clk 0:01:03.1]} 54... Ra5 {[%clk
0:00:30]} 55. Qb4+ {[%clk 0:01:02.9]} 1-0